Cogmind - Beta 16 @@@ ROGUE MODE // 2025.11.18 @ 00:15:54 Player: jumpy Result: Destroyed by D-53 Grenadier with Mini Grenade Launcher Performance ------------- Evolutions (0) 0 Regions Visited (2) 400 Robots Destroyed (26) 130 Value Destroyed (256) 256 Prototype IDs (0) 0 Alien Tech Used (0) 0 Bonus (0) 0 TOTAL SCORE: 786 Bonus ------- None Cogmind --------- Core Integrity 0/250 Matter 295/300 Energy 105/125 System Corruption 0% Temperature Cool (0) Movement Walking (190) Ox1 Location -10/Mines Parts ------- > --- POWER (1) -------- Light Ion Engine > --- PROPULSION (2) --- Aluminum Leg Aluminum Leg > --- UTILITY (2) ------ Large Storage Unit Seismic Detector > --- WEAPON (2) ------- Light Assault Rifle > --- INVENTORY (15) --- Aluminum Leg Wheel Compact Wheel Small Storage Unit Improved Terrain Scanner Light Assault Rifle Light Assault Rifle Mining Laser Makeshift Spear Peak State ------------ > --- POWER ------------ Light Ion Engine > --- PROPULSION ------- Aluminum Leg Aluminum Leg > --- UTILITY ---------- Large Storage Unit Seismic Detector > --- WEAPON ----------- Light Assault Rifle Light Assault Rifle > --- INVENTORY -------- Aluminum Leg Wheel Compact Wheel Small Storage Unit Improved Terrain Scanner Light Assault Rifle Light Assault Rifle Mining Laser [Rating: 8] Favorites ----------- Power Light Ion Engine Engine Light Ion Engine Propulsion Aluminum Leg Leg Aluminum Leg Utility Seismic Detector Device Seismic Detector Storage Small Storage Unit Weapon Light Assault Rifle Ballistic Gun Light Assault Rifle Build | -11 -10 -10 ------- Run | Yrd Mat Min Slots Evolved . | . . . Power . | . . . Propulsion . | . . . Utility . | . . . Weapon . | . . . Parts Attached 13 | 7 5 1 Power 2 | 1 1 . Engine 2 | 1 1 . Core . | . . . Reactor . | . . . Propulsion 4 | 2 1 1 Treads . | . . . Leg 4 | 2 1 1 Wheel . | . . . Hover . | . . . Flight . | . . . Utility 3 | 2 1 . Device 1 | 1 . . Storage 2 | 1 1 . Processor . | . . . Hackware . | . . . Protection . | . . . Artifact . | . . . Weapon 4 | 2 2 . Energy Gun . | . . . Energy Cannon . | . . . Ballistic Gun 4 | 2 2 . Ballistic Cannon . | . . . Launcher . | . . . Special Weapon . | . . . Impact Weapon . | . . . Slashing Weapon . | . . . Piercing Weapon . | . . . Special Melee Weapon . | . . . Unidentified Prototypes . | . . . Parts Lost 3 | . 1 2 Power 1 | . 1 . Propulsion 1 | . . 1 Utility . | . . . Weapon 1 | . . 1 Highest Loss Streak 2 | . 1 2 To Critical Strikes . | . . . Average Backups 5 | 4 6 9 Power . | . . . Propulsion 2 | 1 2 3 Utility 1 | . 1 2 Weapon 1 | . 1 3 Tool/Special . | . . . Unused Backups 8 | 3 . 5 Power . | . . . Propulsion 2 | . . 2 Utility 3 | 2 . 1 Weapon 3 | 1 . 2 Tool/Special . | . . . Average Slot Usage (%) 100 | . 100 100 Engine 14 | . 14 14 Leg 28 | . 28 28 Device 14 | . 14 14 Storage 14 | . 14 14 Ballistic Gun 28 | . 28 28 Peak Build Rating 8 | 7 8 8 Average Rating 6 | 6 7 7 On Entrance 5 | . 7 8 Avg Prop Armor Cover (%) . | . . . Naked Turns . | . . . Heaviest Build 26 | 11 26 26 Greatest Support 20 | 20 20 20 Greatest Overweight (x) 2 | . 1 2 Average Overweight (x) . | . . 1 Largest Inventory Capacity 15 | 8 15 15 Average Capacity 10 | 7 10 15 Most Carried 10 | 6 8 10 Average Carried 5 | 4 6 9 Final Capacity 15 | 8 15 15 Final Carried 9 | 5 8 9 Class Distribution -------------------- 93% | Mutant 6% | Scavenger-Mutant Dominant Class ---------------- Mutant | -10/Materials Mutant | -10/Mines Resources | -11 -10 -10 ----------- Run | Yrd Mat Min Matter Collected 495 | 366 110 19 Remotely . | . . . Salvage Created 571 | 319 205 47 Parts 56 | 31 21 4 Haulers Intercepted . | . . . Recyclers Shooed 1 | . . 1 Parts Field Recycled . | . . . Retrieved Matter . | . . . Parts Self-Destructed . | . . . Prevented . | . . . Parts Restored . | . . . Kills | -11 -10 -10 ------- Run | Yrd Mat Min Combat Hostiles Destroyed 11 | . 10 1 Guns 11 | . 10 1 Classes Destroyed 5 | 3 2 . Worker 5 | 4 1 . Tunneler 9 | 9 . . Recycler 1 | 1 . . Swarmer 8 | . 8 . Grunt 3 | . 2 1 Best Kill Streak 4 | 3 4 1 Combat Bots Only 4 | . 4 1 Max Kills in Single Turn 1 | 1 1 1 Gunslinging . | . . . Exploded . | . . . Melee . | . . . Uniques/NPCs Destroyed . | . . . Combat | -11 -10 -10 -------- Run | Yrd Mat Min Hostile Shots Fired 77 | . 68 9 Missed 20 | . 19 1 Hits 57 | . 49 8 Projectile 57 | . 49 8 AOE 6 | . . 6 Damage Taken 755 | . 426 329 Core 255 | . 115 140 Absorbed by Shields . | . . . Core Remaining (%) 100 | 100 . . Volleys Fired 86 | 48 35 3 Largest 2 | 2 2 2 Hottest 40 | 40 40 40 Shots Fired 172 | 96 70 6 Gun 172 | 96 70 6 Cannon . | . . . Launcher . | . . . Special . | . . . Kinetic 172 | 96 70 6 Thermal . | . . . Explosive . | . . . Electromagnetic . | . . . Robot Hit Streak 7 | 7 7 5 Robot Miss Streak 4 | 4 3 1 Penetration Max . | . . . Secondary Targets 3 | . 3 . Max Gunslinging Chain 1 | . 1 . Shots Hit Robots 107 | 57 45 5 Core Hits 51 | 26 21 4 Critical Kills . | . . . Critical Parts Destroyed . | . . . Critical Strikes . | . . . Melee Attacks . | . . . Impact . | . . . Slashing . | . . . Piercing . | . . . Sneak Attacks . | . . . Combat Hostiles . | . . . Follow-up Attacks . | . . . Damage Inflicted 964 | 498 425 41 Guns 959 | 498 425 36 Cannons . | . . . Explosions . | . . . Melee . | . . . Ramming 5 | . . 5 Kinetic 959 | 498 425 36 Thermal . | . . . Explosive . | . . . Electromagnetic . | . . . Impact . | . . . Slashing . | . . . Piercing . | . . . Highest Corruption . | . . . Average Corruption . | . . . Corruption Purged . | . . . Corruption Blocked . | . . . Overload Shots . | . . . Overflow Damage . | . . . Projectiles . | . . . Explosions . | . . . Melee . | . . . Knockbacks . | . . . Impact . | . . . Kinetic . | . . . Secondary . | . . . Self-Inflicted Damage . | . . . Shots . | . . . Rammed . | . . . Targets Rammed 1 | . . 1 Kicked 1 | . . 1 Crushed . | . . . Highest Temperature 12 | . 12 . Average Temperature 6 | . 6 . Received Heat Transfer 72 | . 42 30 Siege Activations . | . . . Martial Activations . | . . . Shielding Activations . | . . . Robots Disrupted . | . . . Combat Hostiles . | . . . Robots Corrupted . | . . . Combat Hostiles . | . . . Parts Fried . | . . . Impact Corruptions . | . . . Robots Melted . | . . . Combat Hostiles . | . . . Parts Melted . | . . . Heat Transferred . | . . . Parts Sabotaged . | . . . Parts Stolen . | . . . Parts Stripped . | . . . Power Chain Reactions . | . . . Alert | -11 -10 -10 ------- Run | Yrd Mat Min Maximum Alert Level . | . . . Low Security (%) 100 | 100 100 100 Level 1 . | . . . Level 2 . | . . . Level 3 . | . . . Level 4 . | . . . Level 5 . | . . . High Security . | . . . Max Security . | . . . Peak Influence 145 | 15 145 51 Initial 51 | . . 51 Average 23 | 1 58 14 Influence Increases 349 | 70 259 20 Destroy 0b10 Robot/C 220 | . 200 20 Destroy 0b10 Robot/NC 75 | 70 5 . Destroy Leader 40 | . 40 . Successful Hack 14 | . 14 . Influence Decreases 349 | 70 128 151 Entered New Map 80 | . . 80 Time Decay 259 | 70 118 71 Lost Part 10 | . 10 . Squads Dispatched 1 | . 1 . Investigation 1 | . 1 . Extermination . | . . . Reinforcement . | . . . Assault . | . . . Garrison . | . . . Intercept . | . . . Searches Triggered . | . . . Construction Impeded . | . . . Haulers Reinforced . | . . . Active Scanning Responses . | . . . Cargo Convoy Interrupts . | . . . Stealth | -11 -10 -10 --------- Run | Yrd Mat Min Distress Signals 1 | . 1 . Communications Jammed . | . . . Distress Signals . | . . . Times Spotted 22 | . 14 8 Peak Tracking Total 5 | . 5 3 Tactical Retreats . | . . . Traps | -11 -10 -10 ------- Run | Yrd Mat Min Traps Triggered 2 | . 2 . Indirectly . | . . . Trap Hack Attempts . | . . . Triggered . | . . . Disarmed . | . . . Reprogrammed . | . . . Reused . | . . . Traps Extracted . | . . . Installed . | . . . Triggered . | . . . Machines | -11 -10 -10 ---------- Run | Yrd Mat Min Machines Disabled . | . . . Max in Single Turn . | . . . Machines Repaired . | . . . Machines Dismantled . | . . . Machines Sabotaged . | . . . Overloaded Fab Kills . | . . . Hacking | -11 -10 -10 --------- Run | Yrd Mat Min Machines Accessed 2 | . 2 . Terminals 2 | . 2 . Fabricators . | . . . Repair Stations . | . . . Recycling Units . | . . . Scanalyzers . | . . . Garrison Access . | . . . Total Hacks 6 | . 6 . Successful 2 | . 2 . Failed 4 | . 4 . Catastrophic 1 | . 1 . Database Lockouts . | . . . Manual 4 | . 4 . Terminals 6 | . 6 . Fabricators . | . . . Repair Stations . | . . . Recycling Units . | . . . Scanalyzers . | . . . Garrison Access . | . . . Terminal Hacks 2 | . 2 . Robot Schematic 1 | . 1 . Registered Components 1 | . 1 . Fabricator Hacks . | . . . Repair Station Hacks . | . . . Recycling Unit Hacks . | . . . Scanalyzer . | . . . Garrison Access Hacks . | . . . Unauthorized Hacks . | . . . Terminals . | . . . Fabricators . | . . . Repair Stations . | . . . Recycling Units . | . . . Scanalyzers . | . . . Garrison Access . | . . . Data Cores Recovered . | . . . Used . | . . . Hacking Detections 2 | . 2 . Full Trace Events . | . . . Feedback Events . | . . . Feedback Blocked . | . . . Robot Schematics Acquired 1 | . 1 . Robots Built . | . . . Authchips . | . . . Time . | . . . Total Robot Build Rating . | . . . Part Schematics Acquired . | . . . Parts Built . | . . . Authchips . | . . . Time . | . . . Total Part Build Rating . | . . . Part Studies Acquired . | . . . Parts Repaired . | . . . Time . | . . . Parts Recycled . | . . . Recycled Matter . | . . . Retrieved Matter . | . . . Retrieved Components . | . . . Parts Scanalyzed . | . . . Part Schematics Acquired . | . . . Parts Damaged . | . . . Bothacking | -11 -10 -10 ------------ Run | Yrd Mat Min Used RIF Installer . | . . . Robots Hacked . | . . . Non-combat . | . . . Combat . | . . . Robot Hacks Applied . | . . . Relay Couplers Released . | . . . Fabnet Peak Effective % . | . . . Robots Rewired . | . . . Allies Hacked . | . . . Hacks Repelled . | . . . Allies | -11 -10 -10 -------- Run | Yrd Mat Min Total Allies 1 | . . 1 Largest Group 1 | . . 1 Highest-Rated Group 31 | . . 31 Highest-Rated Ally 31 | . . 31 Total Orders . | . . . Ally Attacks 5 | . . 5 Total Damage 43 | . . 43 Kills 1 | . . 1 Allies Corrupted . | . . . Allies Melted . | . . . Intel | -11 -10 -10 ------- Run | Yrd Mat Min Active Infowar (turns) 818 | 153 409 256 Seismic 818 | 153 409 256 Robot Analysis Total . | . . . Derelict Logs Recovered . | . . . Drone Launches . | . . . Drone Recoveries . | . . . Exploration | -11 -10 -10 ------------- Run | Yrd Mat Min Turns Passed 1196 | 531 409 256 Spaces Moved 675 | 324 224 127 Core 4 | 4 . . Treads . | . . . Legs 671 | 320 224 127 Wheels . | . . . Hover . | . . . Flight . | . . . Fastest Speed 50 | 50 120 190 Average Speed 138 | 119 135 190 Slowest Speed 260 | 120 190 260 Overloaded Moves . | . . . Propulsion Burnouts . | . . . Robots Hopped . | . . . Potential Cave-ins . | . . . Cave-ins Triggered . | . . . Exploration Rate (%) 33 | 13 56 31 Regions Visited 2 Branch Regions 1 Pre-discovered Areas . | . . . Known Exits Taken . | . . . Unknown Exits Taken 2 | 1 1 . Scrap Searched . | . . . Spaces Dug . | . . . Terrain Destroyed . | . . . Melee . | . . . Projectile . | . . . AOE . | . . . Terrain Rammed . | . . . Walls Destroyed . | . . . Machines Disabled . | . . . Actions | -11 -10 -10 --------- Run | Yrd Mat Min Total 797 | 390 272 135 Wait 11 | 1 9 1 Move 673 | 323 223 127 Hop . | . . . Pick Up 9 | 8 . 1 Fast Attach 7 | 7 . . Attach 2 | . 1 1 Detach . | . . . Swap 5 | . 4 1 Drop 3 | 3 . . Fire 86 | 48 35 3 Melee . | . . . Ram . | . . . Kick 1 | . . 1 Crush . | . . . Escape Stasis . | . . . Rewire . | . . . Trap . | . . . Miscellaneous . | . . . Route ------- -11/Scrapyard -10/Materials (discovered 3 exits: [*Mat] / [*Min x2]) -10/Mines History --------- Turn | Location | Event 5 | -11/Scrapyard | Discovered new exit (range 16) 532 | -11/Scrapyard | Entered Materials 533 | -10/Materials | Build established: Mutant 662 | -10/Materials | Discovered new exit (range 12) 686 | -10/Materials | Discovered new exit (range 9) 896 | -10/Materials | Discovered new exit (range 8) 941 | -10/Materials | Entered Mines 996 | -10/Mines | Met a Derelict bent on vengeance 1000 | -10/Mines | A weapon hastily lodged in a ceiling crevice suddenly fell to the ground 1101 | -10/Mines | Core integrity fell below 50% 1147 | -10/Mines | Assembled infested the area 1162 | -10/Mines | Met a Derelict testing a Signal Generator 1193 | -10/Mines | Core integrity fell below 20% 1197 | -10/Mines | Destroyed by D-53 Grenadier with Mini Grenade Launcher Last Messages --------------- 01163_ Signal Generator broadcasts a burst of procedurally generated transmissions. 01163_ ALERT: Intercepting significant anomalous signal. Redirecting assault force. 01164_ YT-NOO(g): "Okay, I guess that means it works. Now let's get out of here!" 01168_ Signal Generator broadcasts a burst of procedurally generated transmissions. 01168_ ALERT: Intercepting significant anomalous signal. Redirecting assault force. 01174_ Kicked R-06 Scavenger. 01187_ as-40709 destroyed. 01189_ as-84896 suffers critical hit (Burn). 01191_ C-45 Heavy ARC bursts open, deploying its payload. 01191_ D-53 Grenadier unfolds itself. 01194_ YT-NOO(g) destroyed. 01194_ Aluminum Leg destroyed. 01194_ as-84896 destroyed. 01195_ U-05 Engineer lays Concrete. 01197_ Lgt. Assault Rifle destroyed. Map ----- +----------------------------------------------------+ | | | | | | | | | | | | | | | | | | | ?????????????????????????????????????????????????? | | ?????????????????????????????????????????????????? | | ???????????###???????????????????????????????????? | | ?????????## ##???????###????????????????????????? | | ??????### #?????## ##???????????????????????? | | ?????## #????## #???????????????????????? | | ????## ##???## ????????????????????????? | | ???## ####????# ????????????????????????? | | ??## ##??????## ?????????????????????????? | | ??# ##??????## ?????????????????????????? | | ??# ##?????## #?????????????????????????? | | ??## ###???# ###???????????????????????? | | ???### ##??# #####???????????????????? | | ?????## #??# #???#???????????????? | | ??????## ##?## ## #???????????????? | | ???????# ##?# aa#???????????????? | | ???????## #?## # @ ### #???????????????? | | ????????## #??### #???????????????????? | | ?????????# #????# #??????????????????? | | ?????????## #????# ##??????????????????? | | ? ?##????## ####### ##???????????????????? | | ? ???# ##????????????????????? | | # ## ###?????????????????????? | | ??# g #???????????????????????? | | ???# ## dd ##???????????????????????? | | ???## ####?## ## #????????????????????????? | | ????#????????## %### #????????????????????????? | | ??????????????#t #?# #????????????????????????? | | ??????????????# #?# %##???????????????????????? | | ??????????????## #?# #???????????????????????? | | ???????????????## #?### #???????????????????????? | | ????????????????# #???# #???????????????????????? | | ????????????????# #???# #???????????????????????? | | ????????????????# #???# #???????????????????????? | | ????????????????# #???# #???????????????????????? | | ????????????????# #???# #???????????????????????? | | ????????????????# #???# ##??????????????????????? | | ????????????????# ##### ##?????????????????????? | | ????????????????# !% #?????????????????????? | | ????????? #### #?????????????????????? | | ????????#### #??## #?????????????????????? | +----------------------------------------------------+ Best States ------------- Heat Dissipation 25 Energy Generation 10 Energy Capacity 125 Matter Stores 300 Matter Capacity 300 Sight Range 16 Terrain Scan Density 10 Evasion (%) 55 Item Schematics ----------------- None Robot Schematics ------------------ M-13 Machinist | -10/Materials | Hacked Fabricated ------------ Nothing Repaired ---------- Nothing Studied --------- None Alien Tech Used ----------------- None Achievements -------------- None Challenges ------------ None Game ------ Seed CompositeBlanketPit Manual? 0 Play Time 00:06:43 Cumulative 283.8 hours Start 2025.11.18 @ 00:09:52 End 2025.11.18 @ 00:15:54 Sessions 1 Manual Loads 0 Difficulty Rogue Special Mode None Game No. 610 Rogue 610 Adventurer 0 Explorer 0 Win Type - Total 20 Types 14/0/4/1/1/0/0/0/0/0 Lore% 80 Gallery% 72 Achievement% 50 Wizard Run 0 Options --------- Layout 0 ASCII 0 Keyboard 0 Movement Numpad Keybinds 0 Fullscreen 2 Font 18/Terminus Map View 76x50 Zoom Use 0% Tactical HUD 1 Map Filters NONE Filters SATURATION(100) Steam 1 RUN: 5bf21064-266b-41b7-be86-e3fdecf710bf